bitfinex/quotes_BTCUSD_20251208
["timestamp","ask_amount","ask_price","bid_price","bid_amount"]
[1765201252080,0.01092681,91518.0,91517.0,0.02745]
[1765201252283,0.22945359,91522.0,91518.0,0.06317]
[1765201252419,0.21853377,91520.0,91518.0,0.06317]
[1765201252617,0.21853377,91520.0,91519.0,0.02745]
[1765201252935,0.21853377,91520.0,91519.0,0.09062]
[1765201253925,0.22014664,91520.0,91518.0,0.01375]
[1765201254545,0.22014664,91520.0,91519.0,0.09062]
[1765201254546,0.00161287,91520.0,91519.0,0.09062]
[1765201254833,0.01092585,91526.0,91523.0,0.01092621]
[1765201255046,0.01092561,91528.0,91525.0,0.06317]
[1765201255263,0.23948554,91528.0,91527.0,0.06317]
[1765201255468,0.0109249,91534.0,91529.0,0.01092549]
[1765201255643,0.00099999,91550.0,91537.0,0.01092454]
[1765201255859,0.21847346,91545.0,91541.0,0.01092406]
[1765201256222,0.21847346,91545.0,91542.0,0.02467394]
[1765201256223,0.01092358,91545.0,91542.0,0.02467394]
[1765201256406,0.01092323,91548.0,91544.0,0.0740937]
[1765201256550,0.01092323,91548.0,91547.0,0.06317]
[1765201256895,0.22938922,91548.0,91547.0,0.06317]
[1765201257595,0.23983363,91548.0,91547.0,0.06417]
[1765201257763,0.22977808,91548.0,91547.0,0.06417]
[1765201257968,0.22977808,91548.0,91547.0,0.09162]
[1765201258269,0.01044441,91548.0,91547.0,0.09162]
[1765201258738,0.01044441,91548.0,91547.0,0.06417]
[1765201259072,0.01044441,91548.0,91547.0,0.16115]
[1765201259355,0.00038886,91548.0,91547.0,0.16115]
[1765201260731,0.00038886,91548.0,91547.0,0.37961701]
[1765201261607,0.00038886,91548.0,91547.0,0.40180589]
[1765201262011,0.00038886,91548.0,91547.0,0.37861701]
[1765201262236,0.00038886,91548.0,91547.0,0.16271]
[1765201262435,0.00138886,91548.0,91547.0,0.16471]
[1765201262635,0.00138886,91548.0,91547.0,0.06773]
[1765201263039,0.00138886,91548.0,91547.0,0.002]
[1765201263234,0.19985268,91549.0,91547.0,0.002]
[1765201263435,0.19985268,91549.0,91547.0,0.00211662]
[1765201264195,0.19985268,91549.0,91547.0,0.00011662]
[1765201264535,0.20085268,91549.0,91547.0,0.00211662]
[1765201264978,0.01607692,91548.0,91547.0,0.00211662]
[1765201265116,0.03988578,91548.0,91547.0,0.00211662]
[1765201265317,0.35712035,91548.0,91547.0,0.00011662]
[1765201265935,0.35740035,91548.0,91547.0,0.00011662]
[1765201266133,0.35740035,91548.0,91547.0,0.00108076]
[1765201266745,0.33464436,91548.0,91547.0,0.00108076]
[1765201267066,0.35232436,91548.0,91547.0,0.00108076]
[1765201267262,0.37480035,91548.0,91547.0,0.00108076]
[1765201267588,0.37508035,91548.0,91547.0,0.00108076]
[1765201268249,0.37608035,91548.0,91547.0,0.00108076]
[1765201268458,0.39924413,91548.0,91547.0,0.00108076]
[1765201269078,0.21856729,91505.0,91502.0,0.09698]
[1765201269420,0.21868376,91505.0,91502.0,0.09698]
[1765201269619,0.00011647,91505.0,91504.0,0.07948]
[1765201269955,0.00011647,91505.0,91504.0,0.17646]
[1765201270152,0.21858162,91499.0,91498.0,0.01375]
[1765201270552,0.22864812,91499.0,91498.0,0.01375]
[1765201270963,0.22864812,91499.0,91494.0,0.04686]
[1765201270964,0.21859117,91495.0,91494.0,0.04686]
[1765201271139,0.22865767,91495.0,91480.0,0.01093135]
[1765201271346,0.22955345,91482.0,91481.0,0.04686]
[1765201271598,0.23962843,91482.0,91481.0,0.04686]
[1765201272454,0.23962843,91482.0,91480.0,0.005]
[1765201272455,0.02219599,91481.0,91480.0,0.005]
[1765201272660,0.01168785,91481.0,91480.0,0.005]
[1765201272911,0.03388384,91481.0,91480.0,0.005]
[1765201273211,0.35716384,91481.0,91480.0,0.005]
[1765201273613,0.38039131,91481.0,91480.0,0.005]
[1765201273933,0.21865331,91469.0,91467.0,0.04808]
[1765201274145,0.01007498,91468.0,91467.0,0.04808]
[1765201274522,0.01007498,91468.0,91467.0,0.11035]
[1765201274920,0.01007498,91468.0,91467.0,0.2081]
[1765201275126,0.01019136,91468.0,91467.0,0.2081]
[1765201275326,0.01019136,91468.0,91467.0,0.21043976]
[1765201275529,0.00011638,91468.0,91467.0,0.21043976]
[1765201275716,0.00011638,91468.0,91467.0,0.21343976]
[1765201275717,0.00111638,91468.0,91467.0,0.21343976]
[1765201276350,0.00111638,91468.0,91467.0,0.23530556]
[1765201276614,0.21860578,91489.0,91467.0,0.23530556]
[1765201276615,0.01007498,91488.0,91482.0,0.01093111]
[1765201276919,0.21859834,91493.0,91482.0,0.01093111]
[1765201276920,0.01007498,91487.0,91485.0,0.21861405]
[1765201277142,0.01007498,91486.0,91485.0,0.21861405]
[1765201277347,0.01007498,91486.0,91485.0,0.24080293]
[1765201277551,0.01007498,91486.0,91485.0,0.08627184]
[1765201277727,0.01007498,91486.0,91485.0,0.18402184]
[1765201278391,0.01007498,91486.0,91485.0,0.16183296]
[1765201278933,0.01007498,91486.0,91485.0,0.00181296]
[1765201279153,0.01007498,91486.0,91485.0,0.06608296]
[1765201280736,0.01007498,91486.0,91485.0,0.00381296]
[1765201281424,0.01007498,91486.0,91485.0,0.16383296]
[1765201281810,0.01007498,91486.0,91485.0,0.16183296]
[1765201282039,0.01007498,91486.0,91485.0,0.16283296]
[1765201282247,0.22953497,91490.0,91485.0,0.16283296]
[1765201282248,0.22953964,91488.0,91485.0,0.16283296]
[1765201282479,0.01007498,91487.0,91486.0,0.10868063]
[1765201282643,0.02100525,91489.0,91486.0,0.16002]
[1765201282847,0.23961124,91489.0,91488.0,0.06227]
[1765201283052,0.01007498,91489.0,91488.0,0.06227]
[1765201283230,0.22867632,91491.0,91488.0,0.17095039]
[1765201283397,0.01007498,91490.0,91489.0,0.09775]
[1765201283596,0.01007498,91491.0,91489.0,0.09775]
[1765201283844,0.01007766,91491.0,91489.0,0.09775]
[1765201284035,0.01007766,91491.0,91490.0,0.06227]
[1765201284241,0.01092979,91493.0,91490.0,0.06227]
[1765201284442,0.01007766,91493.0,91491.0,0.31635024]
[1765201284754,0.02100733,91494.0,91492.0,0.06227]
[1765201284973,0.01007766,91494.0,91493.0,0.16002]
[1765201285166,0.21859356,91494.0,91493.0,0.2081]
[1765201285403,0.22867122,91494.0,91493.0,0.2081]
[1765201285927,0.01007766,91494.0,91493.0,0.2081]
[1765201286131,0.001,91494.0,91493.0,0.42669595]
[1765201286334,0.001,91494.0,91493.0,0.44888483]
[1765201286532,0.001,91494.0,91493.0,0.42669595]
[1765201286733,0.001,91494.0,91493.0,0.44888483]
[1765201287118,0.02922899,91536.0,91493.0,0.44888483]
[1765201287119,0.01092609,91524.0,91520.0,0.01092657]
[1765201287393,0.01007766,91525.0,91523.0,0.11035]
[1765201287599,0.21852046,91525.0,91523.0,0.04808]
[1765201287820,0.01007766,91524.0,91523.0,0.04808]
[1765201288028,0.01169053,91524.0,91490.0,0.00099999]
[1765201288212,0.01169053,91524.0,91450.0,0.08051074]
[1765201288213,0.22945051,91523.0,91521.0,0.04808]
[1765201288434,0.01007766,91522.0,91521.0,0.04808]
[1765201288776,0.35076745,91522.0,91521.0,0.04808]
[1765201288979,0.55321722,91522.0,91521.0,0.04808]
[1765201289171,0.55321722,91522.0,91521.0,0.11035]
[1765201290193,0.55821722,91522.0,91521.0,0.11035]
[1765201290390,0.21855057,91512.0,91503.0,0.09775]
[1765201290621,0.01092943,91496.0,91493.0,0.04808]
[1765201290827,0.21858702,91497.0,91494.0,0.01092967]
[1765201291022,0.22951634,91497.0,91495.0,0.04808]
[1765201291265,0.01092932,91497.0,91495.0,0.04808]
[1765201291564,0.01092932,91497.0,91496.0,0.16002]
[1765201291724,0.2296326,91497.0,91496.0,0.16002]
[1765201292559,0.2296326,91497.0,91495.0,0.04808]
[1765201292560,0.21858879,91496.0,91495.0,0.04808]
[1765201292757,0.22869129,91496.0,91495.0,0.04808]
[1765201293326,0.22869129,91496.0,91495.0,0.11035]
[1765201293535,0.22869129,91496.0,91495.0,0.20962038]
[1765201294165,0.22869129,91496.0,91495.0,0.21162038]
[1765201294366,0.22869129,91496.0,91495.0,0.11387038]
[1765201294679,0.22969129,91496.0,91495.0,0.11787038]
[1765201295244,0.22969129,91496.0,91495.0,0.05560038]
[1765201295450,0.55169129,91496.0,91495.0,0.00352038]
[1765201295981,0.55169129,91496.0,91495.0,0.00152038]
[1765201296189,0.55169129,91496.0,91495.0,0.00652038]
[1765201296409,0.55169129,91496.0,91495.0,0.00152038]
[1765201296892,0.57588728,91496.0,91495.0,0.00552038]
[1765201297117,0.55369129,91496.0,91495.0,0.00552038]
[1765201297492,0.59248728,91496.0,91495.0,0.00152038]
[1765201297723,0.57488728,91496.0,91495.0,0.00152038]
[1765201297937,0.57029129,91496.0,91495.0,0.00152038]
[1765201298104,0.57029129,91496.0,91495.0,0.00252038]
[1765201298300,0.55269129,91496.0,91495.0,0.00252038]
[1765201298502,0.57029129,91496.0,91495.0,0.06479038]
[1765201299455,0.55269129,91496.0,91495.0,0.06479038]
[1765201299603,0.61834583,91496.0,91495.0,0.06479038]
[1765201299805,0.61834583,91496.0,91495.0,0.00252038]
[1765201300055,0.64182182,91496.0,91495.0,0.00252038]
[1765201300562,0.66517556,91496.0,91495.0,0.00252038]
[1765201302263,0.66645556,91496.0,91495.0,0.00252038]
[1765201302851,0.66645556,91496.0,91443.0,0.095]
[1765201302852,0.21868917,91454.0,91443.0,0.095]
[1765201303046,0.0109335,91462.0,91439.0,0.05901625]
[1765201303047,0.21872056,91441.0,91439.0,0.04808]
[1765201303270,0.21872265,91440.0,91439.0,0.04808]
[1765201303653,0.21872265,91440.0,91439.0,0.11118]
[1765201304186,0.21872265,91440.0,91439.0,0.20856886]
[1765201304589,0.21872265,91440.0,91439.0,0.20656886]
[1765201304955,0.21872265,91440.0,91439.0,0.05046886]
[1765201305568,0.21872265,91440.0,91439.0,0.05246886]
[1765201306181,0.21872265,91440.0,91439.0,0.05046886]
[1765201306355,0.21872265,91440.0,91439.0,0.11356886]
[1765201306686,0.28434411,91440.0,91439.0,0.05046886]
[1765201306884,0.28434411,91440.0,91439.0,0.04846886]
[1765201306885,0.28595698,91440.0,91439.0,0.04846886]
[1765201307359,0.28595698,91440.0,91439.0,0.11356886]
[1765201307560,0.28595698,91440.0,91439.0,0.21056886]
[1765201308093,0.21872058,91441.0,91439.0,0.21056886]
[1765201308295,0.01093589,91442.0,91440.0,0.1581]
[1765201308498,0.01093481,91451.0,91445.0,0.01093553]
[1765201308836,0.01093481,91451.0,91441.0,0.13437202]
[1765201308837,0.01093421,91456.0,91452.0,0.21869347]
[1765201308967,0.22961369,91458.0,91456.0,0.0631]
[1765201309168,0.01093374,91460.0,91457.0,0.0631]
[1765201309402,0.22960901,91460.0,91459.0,0.0631]
[1765201309604,0.23970622,91460.0,91459.0,0.0631]
[1765201309929,0.23970627,91460.0,91459.0,0.15847]
[1765201310324,0.22960901,91460.0,91459.0,0.15847]
[1765201310770,0.21867483,91460.0,91459.0,0.15847]
[1765201311714,0.22959795,91465.0,91462.0,0.0109335]
[1765201311928,0.21867147,91462.0,91458.0,0.01093398]
[1765201312098,0.00099999,91460.0,91441.0,0.06033601]
[1765201312303,0.21871356,91444.0,91442.0,0.09537]
[1765201312902,0.21871356,91444.0,91443.0,0.06485]
[1765201313843,0.21871356,91444.0,91443.0,0.16022]
[1765201314275,0.21871356,91444.0,91443.0,0.16222]
[1765201314614,0.22964899,91445.0,91443.0,0.38245716]
[1765201314886,0.22964131,91447.0,91444.0,0.16022]
[1765201315193,0.22964131,91447.0,91444.0,0.0968624]
[1765201315491,0.01093529,91447.0,91446.0,0.06628384]
[1765201315639,0.2296412,91447.0,91446.0,0.06628384]
[1765201315990,0.22962206,91455.0,91446.0,0.16165384]
[1765201316203,0.01093421,91456.0,91450.0,0.01093493]
[1765201316404,0.22961865,91456.0,91453.0,0.21868972]
[1765201316643,0.01093421,91456.0,91455.0,0.06485]
[1765201316784,0.21868439,91456.0,91455.0,0.06485]
[1765201316992,0.21868439,91456.0,91455.0,0.16022]
[1765201317879,0.01093398,91458.0,91455.0,0.16022]
[1765201318080,0.22961435,91458.0,91457.0,0.06485]
[1765201318282,0.01093374,91460.0,91457.0,0.06485]
[1765201318477,0.22961092,91460.0,91459.0,0.06485]
[1765201318810,0.22876945,91460.0,91459.0,0.06485]
[1765201319160,0.22876945,91460.0,91459.0,0.16022]
[1765201319161,0.21867483,91460.0,91459.0,0.16022]
[1765201319310,0.2186725,91461.0,91459.0,0.16022]
[1765201319511,0.21866795,91463.0,91461.0,0.06485]
[1765201319712,0.21867243,91461.0,91460.0,0.09537]
[1765201319914,0.01093338,91463.0,91460.0,0.09537]
[1765201320121,0.21867243,91461.0,91460.0,0.09537]
[1765201320504,0.22877725,91461.0,91460.0,0.15591]
[1765201320730,0.01010482,91461.0,91460.0,0.15591]
[1765201320942,0.01093302,91466.0,91460.0,0.15591]
[1765201320943,0.22955978,91480.0,91474.0,0.01093206]
[1765201321090,0.22955978,91480.0,91460.0,0.15591]
[1765201321091,0.01010614,91479.0,91478.0,0.2186318]
[1765201321290,0.01093015,91490.0,91482.0,0.02218888]
[1765201321291,0.01093087,91484.0,91482.0,0.02218888]
[1765201321527,0.22954818,91485.0,91482.0,0.02218888]
[1765201321700,0.00099999,91490.0,91480.0,0.01093135]
[1765201321701,0.01010614,91484.0,91483.0,0.31089985]
[1765201321903,0.01093063,91486.0,91483.0,0.09228]
[1765201322129,0.22954609,91486.0,91484.0,0.09228]
[1765201322442,0.01010614,91485.0,91484.0,0.09228]
[1765201322641,0.01010614,91486.0,91485.0,0.24080395]
[1765201322853,0.01092932,91497.0,91492.0,0.22952611]
[1765201323048,0.21860103,91491.0,91489.0,0.01093027]
[1765201323196,0.02103546,91497.0,91493.0,0.01092979]
[1765201323197,0.22951674,91497.0,91493.0,0.01092979]
[1765201323399,0.21859132,91495.0,91492.0,0.21859618]
[1765201323608,0.01092979,91493.0,91490.0,0.09228]
[1765201323810,0.01092943,91496.0,91490.0,0.09228]
[1765201323811,0.01092955,91495.0,91492.0,0.01092991]
[1765201324009,0.01011714,91496.0,91495.0,0.21859117]
[1765201324208,0.323,91503.0,91501.0,0.01092884]
[1765201324413,0.323,91503.0,91497.0,0.01092932]
[1765201324414,0.2185675,91505.0,91503.0,0.06054]
[1765201324688,0.01011871,91504.0,91500.0,0.01092896]
[1765201324880,0.00099999,91510.0,91507.0,0.01092812]
[1765201325075,0.01092764,91511.0,91505.0,0.05795836]
[1765201325288,0.0109274,91513.0,91511.0,0.06054]
[1765201325289,0.21854844,91513.0,91511.0,0.06054]
[1765201325494,0.21854844,91513.0,91512.0,0.06054]
[1765201325692,0.22947369,91514.0,91512.0,0.06054]
[1765201325919,0.22947369,91514.0,91513.0,0.06054]
[1765201326035,0.01092728,91514.0,91513.0,0.15282]
[1765201326234,0.22946387,91518.0,91513.0,0.1637474]
[1765201326483,0.01104373,91518.0,91514.0,0.32175167]
[1765201326683,0.01104373,91518.0,91517.0,0.06054]
[1765201327225,0.00011692,91518.0,91517.0,0.15282]
[1765201328068,0.00011692,91518.0,91517.0,0.17500888]
[1765201329061,0.00011692,91518.0,91517.0,0.17700888]
[1765201329290,0.00011692,91518.0,91517.0,0.17900888]
[1765201330076,0.00011692,91518.0,91517.0,0.22603888]
[1765201330565,0.00011692,91518.0,91517.0,0.20185]
[1765201330768,0.00111692,91518.0,91517.0,0.20485]
[1765201335872,0.21965316,91518.0,91517.0,0.20485]
[1765201336015,0.21965316,91518.0,91517.0,0.11257]
[1765201336212,0.00111692,91518.0,91517.0,0.20608]
[1765201336396,0.22943247,91531.0,91528.0,0.21851187]
[1765201336600,0.22943247,91531.0,91529.0,0.09351]
[1765201336857,0.21850322,91532.0,91530.0,0.114]
[1765201337055,0.21850281,91532.0,91531.0,0.06457]
[1765201337262,0.01092478,91535.0,91531.0,0.37658484]
[1765201337263,0.22942275,91535.0,91531.0,0.37658484]
[1765201337468,0.22942275,91535.0,91534.0,0.114]
[1765201337970,0.22942275,91535.0,91534.0,0.20751]
[1765201338349,0.21849392,91536.0,91534.0,0.20751]
[1765201338520,0.0109243,91539.0,91535.0,0.16900478]
[1765201338720,0.22940705,91541.0,91538.0,0.07549442]
[1765201338966,0.22940705,91541.0,91540.0,0.06457]
[1765201339376,0.33392382,91543.0,91540.0,0.15808]
[1765201339553,0.55240038,91543.0,91542.0,0.06457]
[1765201339943,0.22939462,91546.0,91542.0,0.06457]
[1765201339944,0.01092347,91546.0,91542.0,0.16900394]
[1765201340149,0.21847656,91543.0,91542.0,0.09351]
[1765201340349,0.01092394,91542.0,91536.0,0.21849238]
[1765201340554,0.01092394,91542.0,91541.0,0.06457]
[1765201340974,0.22940038,91543.0,91541.0,0.15808]
[1765201341179,0.22940038,91543.0,91542.0,0.28304894]
[1765201341180,0.001,91543.0,91542.0,0.28304894]
[1765201341340,0.001,91543.0,91542.0,0.37655894]
[1765201341546,0.01092287,91551.0,91545.0,0.01092358]
[1765201341795,0.22937181,91555.0,91549.0,0.21846224]
[1765201342095,0.01092215,91557.0,91551.0,0.01092287]
[1765201342254,0.22936063,91559.0,91540.0,0.01752]
[1765201342255,0.01092191,91559.0,91556.0,0.28301494]
[1765201342441,0.2293567,91561.0,91558.0,0.06457]
[1765201342642,0.01092108,91566.0,91562.0,0.114]
[1765201342874,0.21842685,91564.0,91562.0,0.04943]
[1765201343085,0.21842685,91564.0,91563.0,0.09351]
[1765201343292,0.21842685,91564.0,91544.0,0.09351]
[1765201343293,0.22003972,91564.0,91544.0,0.09351]
[1765201343517,0.01092311,91549.0,91544.0,0.09351]
[1765201343835,0.21846463,91548.0,91547.0,0.09351]
[1765201344022,0.21846177,91550.0,91548.0,0.06457]
[1765201344184,0.21846463,91548.0,91547.0,0.09351]
[1765201344579,0.22938476,91550.0,91547.0,0.15808]
[1765201344783,0.21846314,91549.0,91547.0,0.09351]
[1765201345002,0.21845098,91554.0,91549.0,0.06457]
[1765201345324,0.22936508,91558.0,91554.0,0.06457]
[1765201345483,0.0110382,91564.0,91557.0,0.07549215]
[1765201345682,0.0110382,91564.0,91562.0,0.114]
[1765201345886,0.21846701,91547.0,91541.0,0.09351]
[1765201346107,0.01092311,91549.0,91541.0,0.09351]
[1765201346108,0.21846463,91548.0,91541.0,0.09351]
[1765201346305,0.21846463,91548.0,91547.0,0.09351]
[1765201346507,0.001,91550.0,91547.0,0.15808]
[1765201346708,0.01092191,91559.0,91552.0,0.01092275]
[1765201346884,0.21843897,91559.0,91556.0,0.01092227]
[1765201347226,0.01092191,91559.0,91558.0,0.06457]
[1765201347634,0.01092191,91559.0,91558.0,0.15808]
[1765201348209,0.02101638,91559.0,91558.0,0.15808]
[1765201348829,0.02201638,91559.0,91558.0,0.15808]
[1765201349370,0.01109447,91559.0,91558.0,0.15808]
[1765201349500,0.001,91559.0,91558.0,0.15808]
[1765201350111,0.001,91559.0,91558.0,0.37752076]
[1765201350312,0.001,91559.0,91558.0,0.39970964]
[1765201350532,0.01109447,91559.0,91558.0,0.39970964]
[1765201350935,0.01109447,91559.0,91558.0,0.39870964]
[1765201351135,0.01009447,91559.0,91558.0,0.15808]
[1765201351341,0.01009447,91559.0,91558.0,0.16008]
[1765201351927,0.01009447,91559.0,91558.0,0.16108]
[1765201352136,0.22853285,91559.0,91558.0,0.16108]
[1765201352541,0.01009447,91559.0,91558.0,0.37952076]
[1765201352739,0.01009447,91559.0,91558.0,0.37752076]
[1765201352998,0.01009447,91559.0,91558.0,0.37952076]
[1765201353221,0.00011688,91564.0,91563.0,0.21842884]
[1765201353359,0.02917988,91583.0,91563.0,0.21842884]
[1765201353360,0.2293052,91581.0,91577.0,0.21839504]
[1765201353595,0.01091893,91584.0,91578.0,0.42590306]
[1765201353763,0.01091869,91586.0,91578.0,0.42590306]
[1765201353764,0.01091858,91587.0,91578.0,0.42590306]
[1765201354083,0.00139999,91590.0,91578.0,0.44809194]
[1765201354802,0.0004,91590.0,91578.0,0.42590306]
[1765201355006,0.0004,91590.0,91578.0,0.44809194]
[1765201355292,0.00139999,91590.0,91578.0,0.45209194]
[1765201355754,0.2213039,91579.0,91578.0,0.21151]
[1765201355945,0.00291323,91579.0,91578.0,0.21151]
[1765201356143,0.00391323,91579.0,91578.0,0.21551]
[1765201356346,0.00391323,91579.0,91578.0,0.43390306]
[1765201356582,0.00291323,91579.0,91578.0,0.42990306]
[1765201356958,0.00291323,91579.0,91578.0,0.43290306]
[1765201357159,0.00291323,91579.0,91578.0,0.42890306]
[1765201357378,0.00291323,91579.0,91578.0,0.42590306]
[1765201357581,0.00291323,91579.0,91578.0,0.42690306]
[1765201358291,0.00291323,91579.0,91578.0,0.44909194]
[1765201359021,0.00291323,91579.0,91578.0,0.44809194]
[1765201359158,0.00291323,91579.0,91578.0,0.22969888]
[1765201359360,0.2213039,91579.0,91578.0,0.05343]
[1765201359563,0.22291677,91579.0,91578.0,0.004]
[1765201360004,0.22291677,91579.0,91578.0,0.002]
[1765201360005,0.55852677,91579.0,91578.0,0.002]
[1765201360146,0.55852677,91579.0,91578.0,0.005]
[1765201360147,0.55952677,91579.0,91578.0,0.005]
[1765201360354,0.55952677,91579.0,91578.0,0.003]
[1765201360776,0.55952677,91579.0,91563.0,0.04943]
[1765201360777,0.2184245,91565.0,91563.0,0.04943]
[1765201361207,0.21842079,91567.0,91564.0,0.07549132]
[1765201361421,0.21842079,91567.0,91563.0,0.14294]
[1765201361422,0.21842645,91564.0,91563.0,0.14294]
[1765201361665,0.21842645,91564.0,91547.0,0.01092335]
[1765201361666,0.21843838,91559.0,91547.0,0.01092335]
[1765201361935,0.28405984,91559.0,91549.0,0.01092311]
[1765201362238,0.01092287,91551.0,91546.0,0.15386347]
[1765201362462,0.22938111,91551.0,91547.0,0.01092335]
[1765201362601,0.21846046,91550.0,91547.0,0.32084863]
[1765201362802,0.01092227,91556.0,91553.0,0.21845129]
[1765201363007,0.01092168,91561.0,91555.0,0.01092239]
[1765201363008,0.22935791,91560.0,91555.0,0.01092239]
[1765201363202,0.22935791,91560.0,91559.0,0.06569]
[1765201363408,0.01092168,91561.0,91559.0,0.06569]
[1765201363748,0.01092132,91564.0,91561.0,0.01092168]
[1765201363749,0.001,91564.0,91561.0,0.01092168]
[1765201363896,0.0109206,91570.0,91566.0,0.21842116]
[1765201364094,0.0109206,91570.0,91569.0,0.06569]
[1765201364340,0.21840319,91574.0,91569.0,0.06569]
[1765201364341,0.0119194,91580.0,91576.0,0.22931763]
[1765201364541,0.2338366,91579.0,91578.0,0.06569]
[1765201364704,0.2338363,91579.0,91578.0,0.06569]
[1765201364894,0.0045261,91579.0,91578.0,0.15715]
[1765201365462,0.01465198,91579.0,91578.0,0.37554306]
[1765201365854,0.01303911,91579.0,91578.0,0.37554306]
[1765201366895,0.01303911,91579.0,91578.0,0.37754306]
[1765201367493,0.01303911,91579.0,91578.0,0.39973194]
[1765201367786,0.01304755,91579.0,91578.0,0.39973194]
[1765201369732,0.01304755,91579.0,91578.0,0.46225493]
[1765201369859,0.00291323,91579.0,91578.0,0.46225493]
[1765201370261,0.00291323,91579.0,91578.0,0.46025493]
[1765201370695,0.00391323,91579.0,91578.0,0.46925493]
[1765201373117,0.00391323,91579.0,91578.0,0.40673194]
[1765201379859,0.00139999,91590.0,91589.0,0.02218888]
[1765201379860,0.0004,91590.0,91589.0,0.02218888]
[1765201380061,0.0004,91590.0,91589.0,0.37329239]
[1765201380238,0.0004,91590.0,91589.0,0.45099571]
[1765201381243,0.0004,91590.0,91589.0,0.57914016]
[1765201381430,0.0004,91590.0,91589.0,0.58114016]
[1765201381635,0.01014437,91609.0,91608.0,0.21832154]
[1765201381893,0.01026123,91609.0,91608.0,0.30387042]
[1765201382031,0.00011686,91609.0,91608.0,0.40341042]
[1765201382430,0.00011686,91609.0,91608.0,0.38122154]
[1765201383030,0.00011686,91609.0,91608.0,0.40341042]
[1765201383232,0.00011686,91609.0,91608.0,0.40541042]
[1765201383479,0.00111686,91609.0,91608.0,0.40541042]
[1765201384645,0.00111686,91609.0,91608.0,0.46793341]
[1765201384858,0.0004,91620.0,91608.0,0.46793341]
[1765201384859,0.0004,91620.0,91619.0,0.24048421]
[1765201385057,0.0004,91620.0,91619.0,0.35138421]
[1765201385261,0.0004,91620.0,91619.0,0.45092421]
[1765201385735,0.0004,91620.0,91619.0,0.44870421]
[1765201386123,0.01014437,91639.0,91638.0,0.24043895]
[1765201386326,0.00047936,91645.0,91644.0,0.04754]
[1765201386490,0.00209223,91645.0,91644.0,0.1109]
[1765201386686,0.0122366,91645.0,91644.0,0.1109]
[1765201386894,0.0122366,91645.0,91644.0,0.21044]
[1765201386895,0.00401829,91645.0,91644.0,0.21044]
[1765201387581,0.00601829,91645.0,91644.0,0.21044]
[1765201387784,0.00240542,91645.0,91644.0,0.21044]
[1765201387984,0.00240542,91645.0,91644.0,0.23262888]
[1765201388760,0.00240542,91645.0,91644.0,0.21044]
[1765201389103,0.00340542,91645.0,91644.0,0.21244]
[1765201389440,0.00240542,91645.0,91644.0,0.21244]
[1765201389878,0.00240542,91645.0,91644.0,0.21444]
[1765201390077,0.00240542,91645.0,91644.0,0.21244]
[1765201390231,0.00240542,91645.0,91644.0,0.21044]
[1765201390437,0.00240542,91645.0,91644.0,0.21144]
[1765201392079,0.00401829,91645.0,91644.0,0.1119]
[1765201392453,0.00501829,91645.0,91644.0,0.2047]
[1765201392849,0.00701829,91645.0,91644.0,0.2047]
[1765201393195,0.00501829,91645.0,91644.0,0.2047]
[1765201393418,0.00701829,91645.0,91644.0,0.2047]
[1765201393741,0.00701829,91645.0,91644.0,0.1109]
[1765201394348,0.00701829,91645.0,91644.0,0.2047]
[1765201395007,0.22525169,91645.0,91644.0,0.2047]
[1765201395997,0.22525169,91645.0,91644.0,0.1109]
[1765201396900,0.22525169,91645.0,91625.0,0.01091405]
[1765201396901,0.01091369,91628.0,91625.0,0.01091405]
[1765201397088,0.01091369,91628.0,91611.0,0.04754]
[1765201397089,0.21828103,91625.0,91616.0,0.01091512]
[1765201397287,0.21828103,91625.0,91615.0,0.0938]
[1765201397492,0.21829294,91620.0,91615.0,0.0938]
[1765201398043,0.21829294,91620.0,91619.0,0.10951]
[1765201398713,0.21829294,91620.0,91619.0,0.04754]
[1765201398918,0.21929294,91620.0,91619.0,0.04754]
[1765201399532,0.21831201,91612.0,91611.0,0.14134]
[1765201399739,0.21831201,91612.0,91611.0,0.10951]
[1765201400142,0.21831201,91612.0,91611.0,0.04754]
[1765201400462,0.21832392,91607.0,91606.0,0.04769]
[1765201400908,0.21832392,91607.0,91606.0,0.10966]
[1765201402001,0.21835253,91595.0,91594.0,0.04769]
[1765201402143,0.21835253,91595.0,91594.0,0.04780686]
[1765201402348,0.21835253,91595.0,91594.0,0.10977686]
[1765201402768,0.21835253,91595.0,91594.0,0.20357686]
[1765201403416,0.21835253,91595.0,91594.0,0.20657686]
[1765201404291,0.21835253,91595.0,91594.0,0.20857686]
[1765201404459,0.21835014,91596.0,91594.0,0.20857686]
[1765201404673,0.01091703,91600.0,91596.0,0.06197]
[1765201404877,0.01091691,91601.0,91599.0,0.10966]
[1765201404878,0.22925628,91601.0,91599.0,0.10966]
[1765201405081,0.22925628,91601.0,91600.0,0.06197]
[1765201405295,0.01744,91606.0,91600.0,0.06197]
[1765201405296,0.01744,91606.0,91603.0,0.03310555]
[1765201405495,0.22923523,91609.0,91605.0,0.07288643]
[1765201405718,0.22923523,91609.0,91608.0,0.06197]
[1765201406307,0.22922684,91613.0,91608.0,0.15577]
[1765201406518,0.21830962,91613.0,91612.0,0.10966]
[1765201406839,0.21992249,91613.0,91612.0,0.10966]
[1765201407051,0.21992249,91613.0,91612.0,0.04769]
[1765201407199,0.21992249,91613.0,91599.0,0.04769]
[1765201407200,0.21834061,91600.0,91599.0,0.04769]
[1765201407642,0.21834061,91600.0,91599.0,0.20346]
[1765201408011,0.21834061,91600.0,91599.0,0.10966]
[1765201408249,0.21895375,91600.0,91599.0,0.10966]
[1765201408479,0.21895375,91600.0,91585.0,0.01091881]
[1765201408480,0.21835253,91595.0,91586.0,0.10471869]
[1765201408820,0.21835253,91595.0,91594.0,0.10977686]
[1765201409970,0.21835253,91595.0,91594.0,0.20357686]
[1765201410694,0.74634505,91595.0,91594.0,0.00011686]
[1765201410917,0.77978551,91595.0,91594.0,0.00011686]
[1765201411286,0.66549123,91595.0,91594.0,0.00011686]
[1765201411489,0.72801422,91595.0,91594.0,0.00011686]
[1765201411693,0.75731691,91595.0,91594.0,0.00111686]
[1765201411863,0.75631691,91595.0,91594.0,0.00111686]
[1765201412064,0.75631691,91595.0,91594.0,1e-08]
[1765201412260,0.75631691,91595.0,91546.0,0.27708071]
[1765201412261,0.01092275,91552.0,91551.0,0.04769]
[1765201412515,0.01092275,91552.0,91547.0,0.04769]
[1765201412516,0.21846487,91548.0,91547.0,0.04769]
[1765201412677,0.21846487,91548.0,91547.0,0.04780688]
[1765201412874,0.21846487,91548.0,91547.0,0.10977688]
[1765201413085,0.21846487,91548.0,91547.0,0.20357688]
[1765201413290,0.01092239,91555.0,91551.0,0.21845658]